Cogmind - Beta 16.1 @@@ ROGUE MODE // 2026.02.16 @ 21:56:43 Player: Lintence Result: Destroyed by Y-45 Defender with Beam Rifle Performance ------------- Evolutions (1) 500 Regions Visited (3) 600 Robots Destroyed (32) 160 Value Destroyed (760) 760 Prototype IDs (3) 60 Alien Tech Used (0) 0 Bonus (0) 0 TOTAL SCORE: 2080 Bonus ------- None Cogmind --------- Core Integrity 0/400 Matter 0/300 Energy 100/100 System Corruption 0% Temperature Cool (9) Movement Walking (260) Ox2 Location -9/Materials Parts ------- > --- POWER (1) -------- (None) > --- PROPULSION (3) --- Aluminum Leg > --- UTILITY (3) ------ Medium Storage Unit Targeting Computer > --- WEAPON (2) ------- Ion Cannon Ion Cannon > --- INVENTORY (10) --- Heavy Ion Engine Cooling System Structural Scanner Targeting Computer Targeting Computer Targeting Computer Ion Cannon Ion Cannon Light Cannon Rocket Launcher Peak State ------------ > --- POWER ------------ Heavy Ion Engine > --- PROPULSION ------- Aluminum Leg Aluminum Leg Aluminum Leg > --- UTILITY ---------- Medium Storage Unit Targeting Computer Improved Targeting Computer > --- WEAPON ----------- Ion Cannon Rocket Launcher > --- INVENTORY -------- Reinforced Ion Engine Cooling System Structural Scanner Targeting Computer Targeting Computer Targeting Computer Ion Cannon Ion Cannon Ion Cannon Light Cannon [Rating: 16] Favorites ----------- Power Light Nuclear Core Engine Light Ion Engine Power Core Light Nuclear Core Propulsion Aluminum Leg Leg Aluminum Leg Utility Medium Storage Unit Device Structural Scanner Storage Medium Storage Unit Processor Improved Targeting Computer Weapon Light Cannon Energy Gun Medium Laser Energy Cannon Ion Cannon Ballistic Cannon Light Cannon Launcher Rocket Launcher Build | -11 -10 -10 -9 ------- Run | Yrd Mat Min Mat Slots Evolved 2 | . . . 2 Power . | . . . . Propulsion 1 | . . . 1 Utility 1 | . . . 1 Weapon . | . . . . Parts Attached 31 | 7 7 . 17 Power 5 | 1 1 . 3 Engine 4 | 1 . . 3 Core 1 | . 1 . . Reactor . | . . . . Propulsion 7 | 2 1 . 4 Treads . | . . . . Leg 7 | 2 1 . 4 Wheel . | . . . . Hover . | . . . . Flight . | . . . . Utility 5 | 1 2 . 2 Device 1 | . 1 . . Storage 2 | 1 1 . . Processor 2 | . . . 2 Hackware . | . . . . Protection . | . . . . Artifact . | . . . . Weapon 14 | 3 3 . 8 Energy Gun 5 | 3 1 . 1 Energy Cannon 4 | . . . 4 Ballistic Gun . | . . . . Ballistic Cannon 4 | . 2 . 2 Launcher 1 | . . . 1 Special Weapon . | . . . . Impact Weapon . | . . . . Slashing Weapon . | . . . . Piercing Weapon . | . . . . Special Melee Weapon . | . . . . Unidentified Prototypes 3 | . . . 3 Parts Lost 8 | . . . 8 Power 2 | . . . 2 Propulsion 4 | . . . 4 Utility 1 | . . . 1 Weapon 1 | . . . 1 Highest Loss Streak 5 | . . . 5 To Critical Strikes . | . . . . Average Backups 7 | 1 4 9 9 Power 1 | . 1 2 1 Propulsion . | . . 1 . Utility 2 | . . 1 3 Weapon 3 | . 1 5 3 Tool/Special . | . . . . Unused Backups 13 | . . . 13 Power . | . . . . Propulsion . | . . . . Utility 9 | . . . 9 Weapon 4 | . . . 4 Tool/Special . | . . . . Average Slot Usage (%) 92 | . 90 100 91 Engine 4 | . 4 . 5 Core 6 | . 9 14 4 Leg 27 | . 28 28 27 Device 5 | . 5 14 4 Storage 12 | . 14 14 11 Processor 11 | . . . 16 Energy Gun 5 | . 18 . . Energy Cannon 4 | . . . 6 Ballistic Cannon 14 | . 8 28 14 Peak Build Rating 16 | 6 10 10 16 Average Rating 10 | 4 8 10 12 On Entrance 6 | . 6 10 10 Avg Prop Armor Cover (%) . | . . . . Naked Turns . | . . . . Heaviest Build 30 | 12 22 22 30 Greatest Support 30 | 20 20 20 30 Greatest Overweight (x) 9 | 3 1 1 9 Average Overweight (x) . | . . 1 . Largest Inventory Capacity 10 | 8 10 10 10 Average Capacity 9 | 7 8 10 10 Most Carried 10 | 2 9 9 10 Average Carried 7 | 1 4 9 9 Final Capacity 10 | 8 10 10 10 Final Carried 10 | 2 9 9 10 Class Distribution -------------------- 96% | Mutant 3% | Scavenger-Mutant Dominant Class ---------------- Mutant | -10/Materials Mutant | -10/Mines Mutant | -9/Materials Resources | -11 -10 -10 -9 ----------- Run | Yrd Mat Min Mat Matter Collected 638 | 178 122 . 338 Remotely . | . . . . Salvage Created 876 | . 240 . 636 Parts 47 | . 11 . 36 Haulers Intercepted 3 | . . . 3 Recyclers Shooed 1 | . 1 . . Parts Field Recycled . | . . . . Retrieved Matter . | . . . . Parts Self-Destructed . | . . . . Prevented . | . . . . Parts Restored . | . . . . Kills | -11 -10 -10 -9 ------- Run | Yrd Mat Min Mat Combat Hostiles Destroyed 20 | . 4 . 16 Guns 4 | . 4 . . Cannons 10 | . . . 10 AOE 6 | . . . 6 Classes Destroyed 9 | . 4 . 5 Worker 1 | . 1 . . Builder 3 | . 1 . 2 Hauler 3 | . . . 3 Recycler 2 | . . . 2 Operator 3 | . 1 . 2 Swarmer 4 | . . . 4 Grunt 10 | . 4 . 6 Duelist 1 | . . . 1 Sentry 5 | . . . 5 Best Kill Streak 6 | . 4 . 6 Combat Bots Only 5 | . 2 . 5 Max Kills in Single Turn 3 | . 1 . 3 Gunslinging . | . . . . Exploded 2 | . . . 2 Melee . | . . . . Uniques/NPCs Destroyed . | . . . . Combat | -11 -10 -10 -9 -------- Run | Yrd Mat Min Mat Hostile Shots Fired 196 | . 25 . 171 Missed 55 | . 6 . 49 Hits 141 | . 19 . 122 Melee 3 | . . . 3 Projectile 138 | . 19 . 119 Critical Strikes 4 | . . . 4 Damage Taken 1866 | . 224 . 1642 Core 472 | . 66 . 406 Absorbed by Shields . | . . . . Core Remaining (%) 86 | 100 . 73 . Volleys Fired 76 | . 21 . 55 Largest 2 | . 2 . 2 Hottest 120 | . 115 . 120 Shots Fired 143 | . 41 . 102 Gun 37 | . 37 . . Cannon 98 | . 4 . 94 Launcher 8 | . . . 8 Special . | . . . . Kinetic 85 | . 4 . 81 Thermal 50 | . 37 . 13 Explosive 8 | . . . 8 Electromagnetic . | . . . . Robot Hit Streak 12 | . 6 . 12 Robot Miss Streak 4 | . 4 . 3 Penetration Max . | . . . . Secondary Targets . | . . . . Shots Hit Robots 98 | . 27 . 71 Core Hits 49 | . 14 . 35 Critical Kills . | . . . . Critical Parts Destroyed . | . . . . Critical Strikes 7 | . 2 . 5 Burn 2 | . 2 . . Blast 5 | . . . 5 Melee Attacks . | . . . . Impact . | . . . . Slashing . | . . . . Piercing . | . . . . Sneak Attacks . | . . . . Combat Hostiles . | . . . . Follow-up Attacks . | . . . . Damage Inflicted 2473 | . 403 . 2070 Guns 348 | . 348 . . Cannons 1274 | . 55 . 1219 Explosions 851 | . . . 851 Melee . | . . . . Ramming . | . . . . Kinetic 1061 | . 55 . 1006 Thermal 561 | . 348 . 213 Explosive 851 | . . . 851 Electromagnetic . | . . . . Impact . | . . . . Slashing . | . . . . Piercing . | . . . . Highest Corruption . | . . . . Average Corruption . | . . . . Corruption Purged . | . . . . Corruption Blocked . | . . . . Overload Shots . | . . . . Overflow Damage 88 | . 8 . 80 Projectiles 18 | . 8 . 10 Explosions 70 | . . . 70 Melee . | . . . . Knockbacks 11 | . 1 . 10 Impact . | . . . . Kinetic 10 | . 1 . 9 Secondary 1 | . . . 1 Self-Inflicted Damage 213 | . . . 213 Shots 5 | . . . 5 Rammed . | . . . . Targets Rammed . | . . . . Kicked . | . . . . Crushed . | . . . . Highest Temperature 427 | . 427 . 117 Average Temperature 108 | . 170 . 25 Received Heat Transfer 531 | . 123 . 408 Effects 4 | . 4 . . Shutdowns 2 | . 2 . . Energy Bleed 1 | . 1 . . Short Circuit 1 | . 1 . . Siege Activations . | . . . . Martial Activations . | . . . . Shielding Activations . | . . . . Robots Disrupted . | . . . . Combat Hostiles . | . . . . Robots Corrupted . | . . . . Combat Hostiles . | . . . . Parts Fried . | . . . . Impact Corruptions . | . . . . Robots Melted . | . . . . Combat Hostiles . | . . . . Parts Melted 3 | . 3 . . Heat Transferred 1480 | . 1110 . 370 Parts Sabotaged . | . . . . Parts Stolen . | . . . . Parts Stripped . | . . . . Power Chain Reactions . | . . . . Alert | -11 -10 -10 -9 ------- Run | Yrd Mat Min Mat Maximum Alert Level 1 | . . . 1 Low Security (%) 94 | 100 100 100 91 Level 1 5 | . . . 8 Level 2 . | . . . . Level 3 . | . . . . Level 4 . | . . . . Level 5 . | . . . . High Security . | . . . . Max Security . | . . . . Peak Influence 245 | . 61 . 245 Initial . | . . . . Average 62 | . 23 . 90 Influence Increases 688 | . 116 . 572 Destroy 0b10 Robot/C 400 | . 80 . 320 Destroy 0b10 Robot/NC 60 | . 15 . 45 Destroy Leader 96 | . 20 . 76 Successful Hack 30 | . . . 30 Destroy Structure 27 | . 1 . 26 Lose Combat Pursuer 75 | . . . 75 Influence Decreases 471 | . 116 . 355 Time Decay 394 | . 116 . 278 Lost Part 77 | . . . 77 Squads Dispatched 1 | . 1 . . Investigation . | . . . . Extermination . | . . . . Reinforcement 1 | . 1 . . Assault . | . . . . Garrison . | . . . . Intercept . | . . . . Searches Triggered . | . . . . Construction Impeded . | . . . . Haulers Reinforced . | . . . . Active Scanning Responses . | . . . . Cargo Convoy Interrupts . | . . . . Stealth | -11 -10 -10 -9 --------- Run | Yrd Mat Min Mat Distress Signals . | . . . . Communications Jammed . | . . . . Distress Signals . | . . . . Times Spotted 45 | . 9 . 36 Peak Tracking Total 8 | . 4 . 8 Tactical Retreats 1 | . . . 1 Traps | -11 -10 -10 -9 ------- Run | Yrd Mat Min Mat Traps Triggered . | . . . . Indirectly . | . . . . Trap Hack Attempts . | . . . . Triggered . | . . . . Disarmed . | . . . . Reprogrammed . | . . . . Reused . | . . . . Traps Extracted . | . . . . Installed . | . . . . Triggered . | . . . . Machines | -11 -10 -10 -9 ---------- Run | Yrd Mat Min Mat Machines Disabled 2 | . . . 2 Max in Single Turn 1 | . . . 1 Machines Repaired . | . . . . Machines Dismantled . | . . . . Machines Sabotaged . | . . . . Overloaded Fab Kills . | . . . . Hacking | -11 -10 -10 -9 --------- Run | Yrd Mat Min Mat Machines Accessed 9 | . 1 . 8 Terminals 9 | . 1 . 8 Fabricators . | . . . . Repair Stations . | . . . . Recycling Units . | . . . . Scanalyzers . | . . . . Garrison Access . | . . . . Total Hacks 25 | . 2 . 23 Successful 15 | . 1 . 14 Failed 10 | . 1 . 9 Catastrophic 1 | . . . 1 Database Lockouts . | . . . . Manual 20 | . 2 . 18 Terminals 25 | . 2 . 23 Fabricators . | . . . . Repair Stations . | . . . . Recycling Units . | . . . . Scanalyzers . | . . . . Garrison Access . | . . . . Terminal Hacks 7 | . 1 . 6 Locate Traps 3 | . . . 3 Registered Components 1 | . . . 1 Zone Layout 3 | . 1 . 2 Fabricator Hacks . | . . . . Repair Station Hacks . | . . . . Recycling Unit Hacks . | . . . . Scanalyzer . | . . . . Garrison Access Hacks . | . . . . Unauthorized Hacks 8 | . . . 8 Terminals 8 | . . . 8 Botnet 8 | . . . 8 Fabricators . | . . . . Repair Stations . | . . . . Recycling Units . | . . . . Scanalyzers . | . . . . Garrison Access . | . . . . Data Cores Recovered 2 | . . . 2 Used 1 | . . . 1 Hacking Detections 8 | . 1 . 7 Full Trace Events . | . . . . Feedback Events . | . . . . Feedback Blocked . | . . . . Robot Schematics Acquired . | . . . . Robots Built . | . . . . Authchips . | . . . . Time . | . . . . Total Robot Build Rating . | . . . . Part Schematics Acquired . | . . . . Parts Built . | . . . . Authchips . | . . . . Time . | . . . . Total Part Build Rating . | . . . . Part Studies Acquired . | . . . . Parts Repaired . | . . . . Time . | . . . . Parts Recycled . | . . . . Recycled Matter . | . . . . Retrieved Matter . | . . . . Retrieved Components . | . . . . Parts Scanalyzed . | . . . . Part Schematics Acquired . | . . . . Parts Damaged . | . . . . Bothacking | -11 -10 -10 -9 ------------ Run | Yrd Mat Min Mat Used RIF Installer . | . . . . Robots Hacked . | . . . . Non-combat . | . . . . Combat . | . . . . Robot Hacks Applied . | . . . . Relay Couplers Released . | . . . . Fabnet Peak Effective % . | . . . . Robots Rewired . | . . . . Allies Hacked . | . . . . Hacks Repelled . | . . . . Allies | -11 -10 -10 -9 -------- Run | Yrd Mat Min Mat Total Allies . | . . . . Largest Group . | . . . . Highest-Rated Group . | . . . . Highest-Rated Ally . | . . . . Total Orders . | . . . . Ally Attacks . | . . . . Total Damage . | . . . . Kills . | . . . . Allies Corrupted . | . . . . Allies Melted . | . . . . Intel | -11 -10 -10 -9 ------- Run | Yrd Mat Min Mat Active Infowar (turns) 496 | . 135 90 271 Structural 496 | . 135 90 271 Robot Analysis Total . | . . . . Derelict Logs Recovered . | . . . . Drone Launches . | . . . . Drone Recoveries . | . . . . Exploration | -11 -10 -10 -9 ------------- Run | Yrd Mat Min Mat Turns Passed 1193 | 49 307 90 747 Spaces Moved 618 | 32 169 48 369 Core 12 | 10 . . 2 Treads . | . . . . Legs 606 | 22 169 48 367 Wheels . | . . . . Hover . | . . . . Flight . | . . . . Fastest Speed 50 | 50 120 190 120 Average Speed 140 | 117 127 190 142 Slowest Speed 500 | 200 190 190 500 Overloaded Moves . | . . . . Propulsion Burnouts . | . . . . Robots Hopped . | . . . . Potential Cave-ins . | . . . . Cave-ins Triggered . | . . . . Exploration Rate (%) 25 | 4 31 22 43 Regions Visited 3 Branch Regions 1 Pre-discovered Areas . | . . . . Known Exits Taken . | . . . . Unknown Exits Taken 3 | 1 1 1 . Scrap Searched . | . . . . Spaces Dug . | . . . . Terrain Destroyed 27 | . . . 27 Melee . | . . . . Projectile . | . . . . AOE 27 | . . . 27 Terrain Rammed . | . . . . Walls Destroyed . | . . . . Machines Disabled . | . . . . Actions | -11 -10 -10 -9 --------- Run | Yrd Mat Min Mat Total 799 | 40 218 47 494 Wait 22 | . 16 . 6 Move 615 | 31 168 47 369 Hop . | . . . . Pick Up 22 | 2 2 . 18 Fast Attach 20 | 6 3 . 11 Attach 4 | . 1 . 3 Detach 4 | . 2 . 2 Swap 11 | 1 4 . 6 Drop 25 | . 1 . 24 Fire 76 | . 21 . 55 Melee . | . . . . Ram . | . . . . Kick . | . . . . Crush . | . . . . Escape Stasis . | . . . . Rewire . | . . . . Trap . | . . . . Miscellaneous . | . . . . Route ------- -11/Scrapyard -10/Materials (discovered 2 exits: [*Min x2]) -10/Mines -9/Materials (discovered 2 exits: [*Mat] / [*Min]) History --------- Turn | Location | Event 24 | -11/Scrapyard | Discovered new exit (range 15) 50 | -11/Scrapyard | Entered Materials 83 | -10/Materials | Discovered new exit (range 16) 276 | -10/Materials | Discovered new exit (range 15) 357 | -10/Materials | Entered Mines 424 | -10/Mines | Discovered new exit (range 10) 447 | -10/Mines | Entered Materials 447 | -9/Materials | Evolved 2 slots: Propulsion x1, Utility x1 554 | -9/Materials | Build established: Mutant 789 | -9/Materials | Lost 3 parts (1p1n1w) 919 | -9/Materials | Discovered new exit (range 4) 1099 | -9/Materials | Discovered new exit (range 8) 1121 | -9/Materials | Core integrity fell below 50% 1183 | -9/Materials | Core integrity fell below 20% 1194 | -9/Materials | Destroyed by Y-45 Defender with Beam Rifle Last Messages --------------- 01161_ Imp. Targeting Computer destroyed. 01161_ L-31 Rogue destroyed. 01162_ R-06 Scavenger collects Welding Torch. 01163_ Acquired 7 matter. 01165_ R-06 Scavenger collects Structural Scanner. 01167_ G-34 Mercenary destroyed. 01168_ The unstable cave ceiling collapses. 01176_ Aluminum Leg destroyed. 01179_ K-01 Serf collects debris. 01182_ The unstable cave ceiling collapses. 01184_ K-01 Serf collects debris. 01185_ Hvy. Ion Engine destroyed. 01186_ K-01 Serf collects debris. 01188_ Acquired Aluminum Leg. 01189_ U-05 Engineer lays Concrete. 01190_ K-01 Serf collects debris. 01192_ U-05 Engineer lays Concrete. 01194_ The unstable cave ceiling collapses. 01194_ U-05 Engineer lays Concrete. Map ----- +----------------------------------------------------+ | ## # """ #????????????????????????????????? | | ### # """ #????????????????????????????????? | | #?# # """ *#????????????????????????????????? | | #?# # #????????????????????????????????? | | ###########+#####????????????????????????????????? | | !/! ####! #### """ #???????????????????????? | | !! + [[[ + """ #???????????????????????? | | !! ####[ #### """ #???????????????????????? | | #??# #??# #???????????????????????? | | """ #??# #??#+###+####???????????????????????? | | """ #### #??# #########?????????????????? | | """ + #### # [ #?????????????????? | | ### + #?????????????????? | | ##+####?# # #?????????????????? | | #??# ]] """ ############??????????????? | | % #??# ]] """ #???????# ??????????????? | | #??# ! """ #???????# ??????????????? | | #??# [ #???????# ??????????????? | | #??# = #???????# ??????????????? | | # ##??# #???????# ??????????????? | | ? #???## ###T#"T"############ ??????????????? | | ? ###### #?###"""###?##!!!!## ??????????????? | | ? # # #??## ### !# ??????????????? | | ? # # #### # ## # ??????????????? | | ? # # ##k * * ### ##+##????????????? | | ? # # *!m * ] @ k ????????? | | ? + # = *<* a=% ss t ????????? | | ? # # = u [ s t t ????????? | | ? ###### ## = ###+#########?????????? | | ? ##### ## " # # ??????????????? | | ^^ ^^^^ ##""| # s + ??????????????? | | T ##### ### # ????????????? | | #???####### # """ ""? ???????????? | | ##+######?????????# # """ ""??????????????? | | ##### #??????????# # """ ""??????????????? | | ?#???# #??????????# s# ??????????????? | | ???????????????????????#Y #?????????????????????? | | ???????????????????????# #?????????????????????? | | ???????????????????????? ?????????????????????? | | ???????????????????????? ?????????????????????? | | ???????????????????????? ?????????????????????? | | ???????????????????????? ??????????????????????? | | ?????????????????????????????????????????????????? | | ?????????????????????????????????????????????????? | | ?????????????????????????????????????????????????? | | ?????????????????????????????????????????????????? | | ?????????????????????????????????????????????????? | | ?????????????????????????????????????????????????? | | ?????????????????????????????????????????????????? | | ?????????????????????????????????????????????????? | +----------------------------------------------------+ Best States ------------- Heat Dissipation 28 Energy Generation 14 Energy Capacity 280 Matter Stores 300 Matter Capacity 300 Sight Range 16 Terrain Scan Density 10 Evasion (%) 55 Targeting Accuracy 11 Item Schematics ----------------- None Robot Schematics ------------------ None Fabricated ------------ Nothing Repaired ---------- Nothing Studied --------- None Alien Tech Used ----------------- None Achievements -------------- None Challenges ------------ None Game ------ Seed RecoilConceptAxe Manual? 0 Play Time 00:14:00 Cumulative 87.8 hours Start 2026.02.16 @ 21:43:12 End 2026.02.16 @ 21:56:43 Sessions 1 Manual Loads 0 Difficulty Rogue Special Mode None Game No. 174 Rogue 174 Adventurer 0 Explorer 0 Win Type - Total 1 Types 1/0/0/0/0/0/0/0/0/0 Lore% 26 Gallery% 35 Achievement% 26 Wizard Run 0 Options --------- Layout 1 ASCII 0 Keyboard 0 Movement Mouse Keybinds 0 Fullscreen 2 Font 20/X11 Map View 50x35 Zoom Use 0% Tactical HUD 1 Map Filters NONE Filters NONE Steam 1 RUN: c3bbe907-d809-48e9-9c82-405348b01a72